fUST/lending_fUST_20240421
["ID","MTS","AMOUNT","RATE_DAILY","PERIOD"]
[323097911,1713658239196,-506.82605166,0.00022053,2]
[323097912,1713658239205,-500.0,0.00022053,2]
[323097913,1713658239215,-500.0,0.00022053,2]
[323097914,1713658239224,-544.45684407,0.00022053,2]
[323097915,1713658239234,-649.20300322,0.00022053,2]
[323097916,1713658239243,-500.0,0.00022053,2]
[323097917,1713658239253,-501.09726813,0.00022053,2]
[323097918,1713658239262,-500.0,0.00022053,2]
[323097919,1713658239273,-500.0,0.00022053,2]
[323097920,1713658239282,-500.0,0.00022053,2]
[323097921,1713658239292,-2122.82,0.00022053,2]
[323097922,1713658239302,-500.0,0.00022053,2]
[323097923,1713658239312,-500.0,0.00022053,2]
[323097924,1713658239321,-500.0,0.00022053,2]
[323097925,1713658239331,-449.26295369,0.00022053,2]
[323097926,1713658239341,-501.13487406,0.00022053,2]
[323097927,1713658239351,-500.0,0.00022053,2]
[323097928,1713658239360,-500.0,0.00022053,2]
[323097929,1713658239370,-501.21016988,0.00022053,2]
[323097930,1713658239380,-500.0,0.00022053,2]
[323097931,1713658239391,-840.27,0.00022053,2]
[323097932,1713658239401,-500.82062342,0.00022053,2]
[323097933,1713658239413,-972.43,0.00022053,2]
[323097934,1713658239422,-14286.33958417,0.00022053,2]
[323097951,1713658242557,363.50235402,0.00020805,2]
[323098746,1713658260554,363.50235402,0.00020805,2]
[323098747,1713658267042,150.5,0.00024509,35]
[323098748,1713658267611,150.5,0.00024499,35]
[323098749,1713658268197,150.5,0.00024489,35]
[323098750,1713658278561,363.50235402,0.00020805,2]
[323098752,1713658296571,363.50235402,0.00020805,2]
[323098753,1713658303517,150.0,0.00019953,2]
[323098754,1713658314562,363.50235402,0.00020805,2]
[323098755,1713658332564,363.50235402,0.00020805,2]
[323098758,1713658352567,363.50235402,0.00020805,2]
[323098761,1713658366577,363.50235402,0.00020805,2]
[323098763,1713658387075,363.50235402,0.00020805,2]
[323098764,1713658408576,363.50235402,0.00020805,2]
[323098765,1713658426582,363.50235402,0.00020805,2]
[323098766,1713658450589,363.50235402,0.00020805,2]
[323098767,1713658470584,433.97018088,0.00020805,2]
[323098768,1713658604844,150.0,0.00019953,2]
[323098769,1713658745145,150.5,0.00024226,35]
[323098770,1713658746925,150.5,0.00024216,35]
[323098771,1713658747019,150.5,0.00024226,35]
[323098772,1713658747464,150.5,0.00024206,35]
[323098773,1713658747518,150.5,0.00024216,35]
[323098774,1713658748034,150.5,0.00024206,35]
[323098775,1713658906317,150.0,0.00019953,2]
[323098776,1713658985272,150.5,0.0002423,35]
[323098777,1713658987050,150.5,0.0002422,35]
[323098778,1713658987622,150.5,0.0002421,35]
[323098779,1713659352262,1000.0,0.00021,30]
[323098785,1713659368460,353.05378,0.00020996,2]
[323098786,1713659427546,2000.0,0.00025,30]
[323098840,1713659437906,-154.84515485,0.00021051,2]
[323098841,1713659437917,-2586.33645302,0.00021052,2]
[323098842,1713659437926,-178.15166906,0.000219,2]
[323098843,1713659437935,-178.15166904,0.000219,2]
[323098844,1713659437944,-163.32931331,0.00021946,2]
[323098845,1713659437953,-428.15076205,0.00021946,2]
[323098846,1713659437963,-178.15166904,0.00021947,2]
[323098848,1713659437971,-163.32931329,0.00021947,2]
[323098850,1713659437980,-163.32931329,0.00021948,2]
[323098851,1713659437989,-300.0,0.00022042,2]
[323098853,1713659437998,-4077.47868233,0.00022043,2]
[323098854,1713659438007,-300.0,0.00022043,2]
[323098855,1713659438016,-468.40473074,0.00022044,2]
[323098856,1713659438025,-195.28343422,0.00022044,2]
[323098857,1713659438034,-500.0,0.00022044,2]
[323098858,1713659438042,-192.42437737,0.00022044,2]
[323098859,1713659438051,-450.29008479,0.00022044,2]
[323098860,1713659438064,-540.60756608,0.00022044,2]
[323098862,1713659438072,-506.82605166,0.00022044,2]
[323098863,1713659438081,-501.13487406,0.00022044,2]
[323098864,1713659438090,-840.27,0.00022044,2]
[323098865,1713659438100,-503.4900248,0.00022044,2]
[323098866,1713659438109,-500.0,0.00022044,2]
[323098867,1713659438118,-2007.14,0.00022044,2]
[323098868,1713659438127,-500.0,0.00022044,2]
[323098869,1713659438136,-500.0,0.00022044,2]
[323098870,1713659438147,-2000.0,0.00022044,2]
[323098871,1713659438157,-154.98448297,0.00022045,2]
[323098872,1713659438166,-335.68213909,0.00022046,2]
[323098873,1713659438176,-500.0,0.00022046,2]
[323098874,1713659438185,-500.0,0.00022046,2]
[323098875,1713659438195,-8967.7,0.00022046,2]
[323098876,1713659438204,-500.0,0.00022046,2]
[323098877,1713659438213,-1038.23,0.00022046,2]
[323098878,1713659438222,-508.68990399,0.00022046,2]
[323098879,1713659438231,-7526.06,0.00022046,2]
[323098880,1713659438240,-7526.06,0.00022046,2]
[323098881,1713659438250,-500.0,0.00022046,2]
[323098882,1713659438259,-500.0,0.00022046,2]
[323098883,1713659438268,-500.0,0.00022046,2]
[323098884,1713659438277,-500.0,0.00022046,2]
[323098885,1713659438286,-500.0,0.00022046,2]
[323098886,1713659438295,-500.0,0.00022046,2]
[323098887,1713659438304,-544.45684407,0.00022046,2]
[323098888,1713659438313,-2122.82,0.00022046,2]
[323098889,1713659438322,-500.0,0.00022046,2]
[323098890,1713659438331,-500.0,0.00022046,2]
[323098891,1713659438340,-649.20300322,0.00022046,2]
[323098892,1713659438349,-500.0,0.00022046,2]
[323098893,1713659438358,-501.09726813,0.00022046,2]
[323098894,1713659438367,-500.0,0.00022046,2]
[323098895,1713659438376,-500.0,0.00022046,2]
[323098896,1713659438385,-501.21016988,0.00022046,2]
[323098897,1713659438394,-500.0,0.00022046,2]
[323098898,1713659438403,-500.82062342,0.00022046,2]
[323098899,1713659438413,-500.0,0.00022046,2]
[323098900,1713659438423,-449.26295369,0.00022046,2]
[323098901,1713659438432,-54166.47,0.00022046,2]
[323098902,1713659438441,-500.0,0.00022046,2]
[323098903,1713659438450,-500.0,0.00022046,2]
[323098904,1713659438459,-500.0,0.00022046,2]
[323098905,1713659438468,-500.0,0.00022046,2]
[323098906,1713659438478,-972.43,0.00022046,2]
[323098907,1713659438487,-500.0,0.00022046,2]
[323098908,1713659438497,-583.71,0.00022046,2]
[323098909,1713659438506,-500.0,0.00022046,2]
[323098910,1713659438515,-500.0,0.00022046,2]
[323098911,1713659438524,-500.0,0.00022046,2]
[323098912,1713659438533,-500.0,0.00022046,2]
[323098913,1713659438542,-500.0,0.00022046,2]
[323098914,1713659438551,-500.0,0.00022046,2]
[323098915,1713659438562,-500.0,0.00022046,2]
[323098916,1713659438570,-500.0,0.00022046,2]
[323098917,1713659438580,-500.0,0.00022046,2]
[323098918,1713659438589,-261.39687584,0.00022046,2]
[323098919,1713659438599,-500.17632577,0.00022046,2]
[323098920,1713659438608,-750.08,0.00022046,2]
[323098921,1713659438618,-500.0,0.00022046,2]
[323098922,1713659438627,-500.0,0.00022046,2]
[323098923,1713659438636,-500.0,0.00022046,2]
[323098924,1713659438645,-500.0,0.00022046,2]
[323098925,1713659438654,-500.0,0.00022046,2]
[323098926,1713659438662,-500.0,0.00022046,2]
[323098927,1713659438671,-361.42917162,0.00022047,2]
[323098928,1713659438681,-500.0,0.00022048,2]
[323098929,1713659438690,-198.7389724,0.00022048,2]
[323098930,1713659438698,-500.0,0.00022048,2]
[323098931,1713659438708,-500.0,0.00022048,2]
[323098932,1713659438717,-626.03,0.00022048,2]
[323098933,1713659438726,-626.03,0.00022048,2]
[323098934,1713659438735,-500.0,0.00022048,2]
[323098935,1713659438744,-500.96438665,0.00022048,2]
[323098936,1713659438753,-500.0,0.00022048,2]
[323098937,1713659438763,-503.59595851,0.00022048,2]
[323098938,1713659438772,-500.0,0.00022048,2]
[323098939,1713659438781,-500.0,0.00022048,2]
[323098940,1713659438790,-632.36728935,0.00022048,2]
[323098941,1713659438799,-500.0,0.00022048,2]
[323098942,1713659438808,-511.67605986,0.00022048,2]
[323098943,1713659438818,-500.0,0.00022048,2]
[323098944,1713659438827,-906.68,0.00022048,2]
[323098945,1713659438836,-500.0,0.00022048,2]
[323098946,1713659438845,-503.63924595,0.00022048,2]
[323098947,1713659438854,-500.0,0.00022048,2]
[323098948,1713659438863,-873.81,0.00022048,2]
[323098949,1713659438873,-500.0,0.00022048,2]
[323098950,1713659438882,-621.24029505,0.00022048,2]
[323098951,1713659438891,-500.0,0.00022048,2]
[323098952,1713659438901,-502.14383894,0.00022048,2]
[323098953,1713659438909,-500.0,0.00022048,2]
[323098954,1713659438921,-500.0,0.00022048,2]
[323098955,1713659438931,-507.18026327,0.00022048,2]
[323098956,1713659438940,-500.0,0.00022048,2]
[323098957,1713659438950,-500.0,0.00022048,2]
[323098958,1713659438959,-526.38350613,0.00022048,2]
[323098959,1713659438968,-500.0,0.00022048,2]
[323098960,1713659438977,-500.0,0.00022048,2]
[323098961,1713659438986,-501.19042999,0.00022048,2]
[323098962,1713659438995,-500.70493148,0.00022048,2]
[323098963,1713659439004,-505.59298456,0.00022048,2]
[323098964,1713659439013,-171.19012813,0.00022048,2]
[323099419,1713659446022,-337.26954182,0.00021946,2]
[323099420,1713659446032,-721.0835634,0.00022043,2]
[323099421,1713659471407,3000.0,0.00025,30]
[323099422,1713659512949,4000.0,0.00025,30]
[323099423,1713659528646,-265.0,0.00025042,35]
[323099424,1713659528667,-735.0,0.00025042,35]
[323099425,1713659562650,-1028.0,0.00025042,35]
[323099426,1713659562671,-265.0,0.00025052,35]
[323099427,1713659562691,-1763.0,0.00025052,35]
[323099428,1713659562713,-265.0,0.00025062,35]
[323099429,1713659562734,-1763.0,0.00025062,35]
[323099430,1713659584693,578.0,0.00024226,35]
[323099431,1713659585166,1234.0,0.00024226,35]
[323099432,1713659585286,578.0,0.00024216,35]
[323099433,1713659586947,578.0,0.00024206,35]
[323099434,1713659586999,1234.0,0.00024216,35]
[323099435,1713659587565,1234.0,0.00024206,35]
[323099436,1713659705308,864.0,0.00024226,35]
[323099437,1713659705341,186.0,0.00024226,35]
[323099438,1713659705421,168.58,0.00024226,35]
[323099439,1713659706887,186.0,0.00024216,35]
[323099440,1713659706937,864.0,0.00024216,35]
[323099441,1713659707468,186.0,0.00024206,35]
[323099442,1713659707807,864.0,0.00024206,35]
[323099443,1713659825374,605.0,0.00024127,35]
[323099444,1713659826894,605.0,0.00024117,35]
[323099445,1713659827710,605.0,0.00024107,35]
[323099446,1713659928102,168.661091,0.00020591,2]
[323099447,1713659944833,405.0,0.00024224,35]
[323099448,1713659945062,150.5,0.00024224,35]
[323099449,1713659945167,423.0,0.00024224,35]
[323099450,1713659945402,405.0,0.00024214,35]
[323099451,1713659946988,423.0,0.00024214,35]
[323099452,1713659947015,405.0,0.00024204,35]
[323099453,1713659947042,150.5,0.00024214,35]
[323099454,1713659947542,150.5,0.00024204,35]
[323099455,1713659947705,423.0,0.00024204,35]
[323099456,1713660066922,296.0,0.00024224,35]
[323099457,1713660067521,296.0,0.00024214,35]
[323099458,1713660068088,296.0,0.00024204,35]
[323099459,1713660185323,207.0,0.00024222,35]
[323099460,1713660186890,207.0,0.00024212,35]
[323099461,1713660186967,150.5,0.00024222,35]
[323099462,1713660187536,150.5,0.00024212,35]
[323099463,1713660188233,150.5,0.00024202,35]
[323099464,1713660188261,207.0,0.00024202,35]
[323099465,1713660198551,154.84515485,0.00020999,2]
[323099466,1713660219312,603.00424043,0.00020999,2]
[323099467,1713660222097,623.42745137,0.00020999,2]
[323099468,1713660304775,283.0,0.00024222,35]
[323099469,1713660305394,283.0,0.00024212,35]
[323099470,1713660306995,150.5,0.00024222,35]
[323099471,1713660307024,283.0,0.00024202,35]
[323099472,1713660307566,150.5,0.00024212,35]
[323099473,1713660308149,150.5,0.00024202,35]
[323099474,1713660351627,315.698469,0.00020959,2]
[323099475,1713660425317,150.5,0.00024166,35]
[323099476,1713660425345,150.5,0.00024166,35]
[323099477,1713660426924,253.0,0.00024156,35]
[323099478,1713660426956,150.5,0.00024156,35]
[323099479,1713660427430,150.5,0.00024146,35]
[323099480,1713660546935,150.5,0.00024122,35]
[323099481,1713660547511,150.5,0.00024112,35]
[323099482,1713660548101,253.9,0.00024102,35]
[323099523,1713660632091,-154.84515485,0.00021002,2]
[323099526,1713660632101,-283.15869964,0.00021003,2]
[323099528,1713660632112,-1990.74337791,0.0002101,2]
[323099530,1713660632121,-1000.0,0.00021016,2]
[323099532,1713660632131,-178.15166904,0.000218,2]
[323099534,1713660632140,-1218.90897947,0.00021938,2]
[323099536,1713660632150,-300.0,0.00021938,2]
[323099538,1713660632159,-300.0,0.00021938,2]
[323099540,1713660632168,-1218.90897943,0.00021939,2]
[323099542,1713660632178,-1218.90897943,0.00021939,2]
[323099544,1713660632187,-1218.90897943,0.0002194,2]
[323099546,1713660632196,-1218.90897943,0.0002194,2]
[323099548,1713660632206,-195.28343422,0.00022034,2]
[323099550,1713660632215,-46310.90557612,0.00022035,2]
[323099696,1713660638173,-500.0,0.00022034,2]
[323099697,1713660638186,-192.42437737,0.00022034,2]
[323099698,1713660638198,-450.29008479,0.00022034,2]
[323099699,1713660638211,-540.60756608,0.00022034,2]
[323099700,1713660638223,-33689.09442388,0.00022035,2]
[323099701,1713660638233,-506.82605166,0.00022036,2]
[323099703,1713660638245,-544.45684407,0.00022036,2]
[323099706,1713660638257,-501.13487406,0.00022036,2]
[323099707,1713660638269,-500.0,0.00022036,2]
[323099708,1713660638280,-840.27,0.00022036,2]
[323099709,1713660638291,-2007.14,0.00022036,2]
[323099710,1713660638303,-500.0,0.00022036,2]
[323099711,1713660638314,-500.0,0.00022036,2]
[323099712,1713660638325,-972.43,0.00022036,2]
[323099713,1713660638337,-500.0,0.00022036,2]
[323099714,1713660638348,-500.0,0.00022036,2]
[323099715,1713660638360,-500.0,0.00022036,2]
[323099716,1713660638375,-500.0,0.00022036,2]
[323099717,1713660638387,-2000.0,0.00022036,2]
[323099718,1713660638399,-500.0,0.00022036,2]
[323099719,1713660638410,-198.7389724,0.00022036,2]
[323099720,1713660638422,-601.54845449,0.00022037,2]
[323099721,1713660638433,-500.0,0.00022038,2]
[323099722,1713660638445,-503.4900248,0.00022038,2]
[323099723,1713660638456,-500.0,0.00022038,2]
[323099724,1713660638467,-500.0,0.00022038,2]
[323099725,1713660638482,-500.0,0.00022038,2]
[323099726,1713660638493,-500.0,0.00022038,2]
[323099727,1713660638504,-501.23593107,0.00022038,2]
[323099728,1713660638516,-500.0,0.00022038,2]
[323099729,1713660638528,-502.7746934,0.00022038,2]
[323099730,1713660638539,-500.0,0.00022038,2]
[323099731,1713660638551,-500.0,0.00022038,2]
[323099732,1713660638563,-500.0,0.00022038,2]
[323099733,1713660638574,-500.0,0.00022038,2]
[323099734,1713660638585,-500.0,0.00022038,2]
[323099735,1713660638596,-540.96003793,0.00022038,2]
[323099736,1713660638607,-503.72682381,0.00022038,2]
[323099737,1713660638622,-500.0,0.00022038,2]
[323099738,1713660638633,-500.0,0.00022038,2]
[323099739,1713660638645,-500.0,0.00022038,2]
[323099740,1713660638656,-500.0,0.00022038,2]
[323099741,1713660638667,-500.0,0.00022038,2]
[323099742,1713660638679,-500.0,0.00022038,2]
[323099743,1713660638691,-587.08998366,0.00022038,2]
[323099744,1713660638702,-502.79274721,0.00022038,2]
[323099745,1713660638714,-500.0,0.00022038,2]
[323099746,1713660638723,-8967.7,0.00022038,2]
[323099747,1713660638732,-500.0,0.00022038,2]
[323099748,1713660638867,-504.57168584,0.00022038,2]
[323099749,1713660638882,-1002.50611089,0.00022038,2]
[323099750,1713660638891,-500.80640409,0.00022038,2]
[323099751,1713660638900,-525.00385302,0.00022038,2]
[323099752,1713660638909,-500.0,0.00022038,2]
[323099753,1713660638919,-507.02918325,0.00022038,2]
[323099754,1713660638928,-1038.23,0.00022038,2]
[323099755,1713660638937,-500.0,0.00022038,2]
[323099756,1713660638947,-508.68990399,0.00022038,2]
[323099757,1713660638956,-574.09811622,0.00022038,2]
[323099758,1713660638964,-507.384459,0.00022038,2]
[323099759,1713660638973,-7526.06,0.00022038,2]
[323099760,1713660638982,-7526.06,0.00022038,2]
[323099761,1713660638991,-502.19134529,0.00022038,2]
[323099762,1713660639000,-502.63269257,0.00022038,2]
[323099763,1713660639009,-500.0,0.00022038,2]
[323099764,1713660639018,-601.80718126,0.00022038,2]
[323099765,1713660639026,-500.0,0.00022038,2]
[323099766,1713660639036,-505.42350942,0.00022038,2]
[323099767,1713660639045,-500.87591766,0.00022038,2]
[323099768,1713660639053,-500.0,0.00022038,2]
[323099769,1713660639062,-502.55758394,0.00022038,2]
[323099770,1713660639072,-511.0561452,0.00022038,2]
[323099771,1713660639081,-528.81710653,0.00022038,2]
[323099772,1713660639090,-500.0,0.00022038,2]
[323099773,1713660639098,-622.66200551,0.00022038,2]
[323099774,1713660639107,-505.37683879,0.00022038,2]
[323099775,1713660639118,-500.0,0.00022038,2]
[323099776,1713660639127,-500.0,0.00022038,2]
[323099777,1713660639136,-500.0,0.00022038,2]
[323099778,1713660639145,-500.0,0.00022038,2]
[323099779,1713660639154,-500.0,0.00022038,2]
[323099780,1713660639163,-500.0,0.00022038,2]
[323099781,1713660639173,-500.0,0.00022038,2]
[323099782,1713660639182,-500.0,0.00022038,2]
[323099783,1713660639190,-2122.82,0.00022038,2]
[323099784,1713660639199,-500.0,0.00022038,2]
[323099785,1713660639208,-446.3722172,0.00022038,2]
[323099786,1713660639218,-500.0,0.00022038,2]
[323099787,1713660639227,-500.0,0.00022038,2]
[323099788,1713660639237,-621.59,0.00022038,2]
[323099789,1713660639246,-500.0,0.00022038,2]
[323099790,1713660639256,-649.20300322,0.00022038,2]
[323099791,1713660639265,-500.0,0.00022038,2]
[323099792,1713660639274,-501.09726813,0.00022038,2]
[323099793,1713660639285,-500.0,0.00022038,2]
[323099794,1713660639294,-500.0,0.00022038,2]
[323099795,1713660639304,-501.21016988,0.00022038,2]
[323099796,1713660639313,-151.0,0.00022038,2]
[323099797,1713660639323,-500.0,0.00022038,2]
[323099798,1713660639333,-500.0,0.00022038,2]
[323099799,1713660639343,-500.0,0.00022038,2]
[323099800,1713660639352,-500.0,0.00022038,2]
[323099801,1713660639361,-500.82062342,0.00022038,2]
[323099802,1713660639370,-500.0,0.00022038,2]
[323099803,1713660639379,-28324.38637209,0.00022038,2]
[323099901,1713660646281,-626.03,0.00022036,2]
[323099902,1713660646291,-626.03,0.00022036,2]
[323099903,1713660646300,-500.0,0.00022036,2]
[323099904,1713660646310,-500.0,0.00022036,2]
[323099905,1713660646319,-626.03,0.00022037,2]
[323099906,1713660646328,-25842.08362791,0.00022038,2]
[323099907,1713660646338,-449.26295369,0.00022038,2]
[323099908,1713660646348,-500.0,0.00022038,2]
[323099909,1713660646358,-500.0,0.00022038,2]
[323099910,1713660646368,-500.0,0.00022038,2]
[323099911,1713660646378,-500.0,0.00022038,2]
[323099912,1713660646389,-500.0,0.00022038,2]
[323099913,1713660646398,-495.64660877,0.00022038,2]
[323099914,1713660646407,-500.0,0.00022038,2]
[323099915,1713660646416,-500.0,0.00022038,2]
[323099916,1713660646426,-500.0,0.00022038,2]
[323099917,1713660646435,-583.71,0.00022038,2]
[323099919,1713660646445,-500.0,0.00022038,2]
[323099921,1713660646454,-500.0,0.00022038,2]
[323099922,1713660646463,-500.0,0.00022038,2]
[323099923,1713660646471,-500.0,0.00022038,2]
[323099924,1713660646485,-500.0,0.00022038,2]
[323099925,1713660646497,-500.0,0.00022038,2]
[323099926,1713660646506,-500.0,0.00022038,2]
[323099927,1713660646517,-500.0,0.00022038,2]
[323099928,1713660646528,-500.0,0.00022038,2]
[323099929,1713660646537,-500.17632577,0.00022038,2]
[323099930,1713660646546,-500.0,0.00022038,2]
[323099931,1713660646555,-500.0,0.00022038,2]
[323099932,1713660646567,-500.0,0.00022038,2]
[323099933,1713660646577,-500.0,0.00022038,2]
[323099934,1713660646586,-261.39687584,0.00022038,2]
[323099935,1713660646596,-500.0,0.00022038,2]
[323099936,1713660646605,-750.08,0.00022038,2]
[323099937,1713660646615,-500.50395948,0.00022038,2]
[323099938,1713660646625,-500.0,0.00022038,2]
[323099939,1713660646635,-500.0,0.00022038,2]
[323099940,1713660646644,-620.30481054,0.00022038,2]
[323099941,1713660646654,-500.0,0.00022038,2]
[323099942,1713660646664,-516.16189484,0.00022038,2]
[323099943,1713660646673,-503.50944889,0.00022038,2]
[323099944,1713660646682,-500.0,0.00022038,2]
[323099945,1713660646691,-810.62463008,0.00022039,2]
[323099946,1713660646701,-565.27108131,0.00022039,2]
[323099947,1713660646710,-500.0,0.00022039,2]
[323099948,1713660646719,-626.03,0.00022039,2]
[323099949,1713660646728,-626.03,0.00022039,2]
[323099950,1713660646736,-626.03,0.00022039,2]
[323099951,1713660646746,-626.03,0.00022039,2]
[323099952,1713660646755,-3228.61819429,0.0002204,2]
[323099953,1713660646764,-503.59595851,0.0002204,2]
[323099954,1713660646773,-500.0,0.0002204,2]
[323099955,1713660646782,-500.96438665,0.0002204,2]
[323099956,1713660646791,-500.0,0.0002204,2]
[323099957,1713660646800,-632.36728935,0.0002204,2]
[323099958,1713660646809,-511.67605986,0.0002204,2]
[323099959,1713660646818,-500.0,0.0002204,2]
[323099960,1713660646828,-500.0,0.0002204,2]
[323099961,1713660646837,-503.63924595,0.0002204,2]
[323099962,1713660646846,-500.0,0.0002204,2]
[323099963,1713660646856,-500.0,0.0002204,2]
[323099964,1713660646865,-500.0,0.0002204,2]
[323099965,1713660646875,-500.0,0.0002204,2]
[323099966,1713660646884,-906.68,0.0002204,2]
[323099967,1713660646893,-500.0,0.0002204,2]
[323099968,1713660646902,-621.24029505,0.0002204,2]
[323099969,1713660646912,-507.18026327,0.0002204,2]
[323099970,1713660646921,-873.81,0.0002204,2]
[323099971,1713660646930,-500.0,0.0002204,2]
[323099972,1713660647031,-500.0,0.0002204,2]
[323099973,1713660647041,-500.0,0.0002204,2]
[323099974,1713660647050,-502.14383894,0.0002204,2]
[323099975,1713660647059,-500.0,0.0002204,2]
[323099976,1713660647068,-501.19042999,0.0002204,2]
[323099977,1713660647077,-500.70493148,0.0002204,2]
[323099978,1713660647086,-500.0,0.0002204,2]
[323099979,1713660647095,-505.59298456,0.0002204,2]
[323099980,1713660647104,-526.38350613,0.0002204,2]
[323099981,1713660647113,-500.0,0.0002204,2]
[323099982,1713660647122,-500.0,0.0002204,2]
[323099983,1713660647131,-500.0,0.0002204,2]
[323099984,1713660647140,-500.0,0.0002204,2]
[323099985,1713660647149,-500.0,0.0002204,2]
[323099986,1713660647158,-2814.17,0.0002204,2]
[323099987,1713660647167,-2814.17,0.0002204,2]
[323099988,1713660647176,-1017.42,0.0002204,2]
[323099989,1713660647186,-500.0,0.0002204,2]
[323099990,1713660647195,-500.0,0.0002204,2]
[323099991,1713660647204,-501.15498046,0.0002204,2]
[323099992,1713660647213,-500.36024304,0.0002204,2]
[323099993,1713660647222,-502.21627794,0.0002204,2]
[323099994,1713660647231,-500.0,0.0002204,2]
[323099995,1713660647240,-500.0,0.0002204,2]
[323099996,1713660647250,-502.81322365,0.0002204,2]
[323099997,1713660647259,-500.0,0.0002204,2]
[323099998,1713660647269,-501.06953737,0.0002204,2]
[323099999,1713660647278,-1314.69,0.0002204,2]
[323100000,1713660647288,-502.02839671,0.0002204,2]
[323100001,1713660647299,-500.0,0.0002204,2]
[323100002,1713660647308,-500.60144204,0.0002204,2]
[323100003,1713660647318,-500.0,0.0002204,2]
[323100004,1713660647327,-1173.59,0.0002204,2]
[323100005,1713660647337,-500.0,0.0002204,2]
[323100006,1713660647347,-500.5651861,0.0002204,2]
[323100007,1713660647356,-500.0,0.0002204,2]
[323100008,1713660647367,-500.0,0.0002204,2]
[323100009,1713660647376,-503.76255764,0.0002204,2]
[323100010,1713660647385,-506.80430533,0.0002204,2]
[323100011,1713660647396,-502.18870032,0.0002204,2]
[323100012,1713660647406,-2081.0,0.0002204,2]
[323100013,1713660647416,-500.0,0.0002204,2]
[323100014,1713660647426,-501.1546389,0.0002204,2]
[323100015,1713660647436,-300.5743031,0.0002204,2]
[323100016,1713660647445,-500.0,0.0002204,2]
[323100017,1713660647454,-500.0,0.0002204,2]
[323100018,1713660647464,-196.87355829,0.0002204,2]
[323100019,1713660647473,-1336.62,0.0002204,2]
[323100020,1713660647486,-500.0,0.0002204,2]
[323100021,1713660647496,-500.0,0.0002204,2]
[323100022,1713660647505,-500.0,0.0002204,2]
[323100023,1713660647515,-500.0,0.0002204,2]
[323100024,1713660647525,-500.0,0.0002204,2]
[323100025,1713660647534,-500.0,0.0002204,2]
[323100026,1713660647543,-313.815032,0.0002204,2]
[323100027,1713660647552,-313.815032,0.0002204,2]
[323100028,1713660647563,-500.0,0.0002204,2]
[323100029,1713660647572,-501.96048676,0.0002204,2]
[323100030,1713660647582,-621.93406891,0.0002204,2]
[323100031,1713660647591,-500.0,0.0002204,2]
[323100032,1713660647600,-500.0,0.0002204,2]
[323100033,1713660647610,-500.0,0.0002204,2]
[323100034,1713660647622,-500.0,0.0002204,2]
[323100035,1713660647631,-500.0,0.0002204,2]
[323100036,1713660647642,-500.0,0.0002204,2]
[323100037,1713660647652,-500.0,0.0002204,2]
[323100038,1713660647662,-500.0,0.0002204,2]
[323100039,1713660647672,-500.0,0.0002204,2]
[323100040,1713660647681,-501.65763772,0.0002204,2]
[323100041,1713660647691,-391.715099,0.0002204,2]
[323100042,1713660647701,-501.33725016,0.0002204,2]
[323100043,1713660647710,-500.0,0.0002204,2]